bitfinex/quotes_SOLUSD_20240622
["timestamp","ask_amount","ask_price","bid_price","bid_amount"]
[1719049981339,13.933,134.72,134.68,7.4249]
[1719049981747,13.933,134.72,134.67,13.9353]
[1719049984375,6.51,134.72,134.68,7.4249]
[1719049984544,33.9325,134.73,134.68,7.4249]
[1719049985864,27.4225,134.73,134.68,7.4249]
[1719049986266,7.4228,134.72,134.68,7.4249]
[1719049989370,21.5991,134.74,134.69,25.2407]
[1719049989570,21.5991,134.74,134.69,6.68]
[1719049989870,28.1091,134.74,134.7,7.4236]
[1719049990076,29.0208,134.74,134.7,7.4236]
[1719049990270,21.5991,134.74,134.69,6.68]
[1719049990466,13.9326,134.73,134.68,7.4247]
[1719049990969,13.9326,134.73,134.69,7.4244]
[1719049991150,7.4226,134.73,134.69,7.4244]
[1719049991552,13.9326,134.73,134.69,7.4244]
[1719049991757,6.51,134.73,134.69,7.4244]
[1719049993572,35.531,134.74,134.69,7.4244]
[1719049994074,7.4223,134.73,134.68,7.4248]
[1719049994273,6.51,134.7,134.66,7.4259]
[1719049995061,6.51,134.7,134.67,7.4254]
[1719049995370,6.51,134.7,134.66,7.4258]
[1719049995953,6.51,134.7,134.67,7.4255]
[1719049996953,6.51,134.71,134.68,7.4249]
[1719049997364,29.0209,134.74,134.68,6.51]
[1719049997574,6.51,134.73,134.68,6.51]
[1719049998260,6.51,134.73,134.69,7.4242]
[1719049998453,35.5309,134.74,134.69,7.4242]
[1719050002382,6.51,134.73,134.69,7.4242]
[1719050005884,13.9323,134.73,134.69,7.4242]
[1719050006069,13.9323,134.73,134.68,7.4247]
[1719050006478,6.51,134.71,134.67,7.7654]
[1719050006679,6.51,134.7,134.64,6.51]
[1719050006870,6.51,134.7,134.65,0.34]
[1719050007867,6.51,134.7,134.67,7.4255]
[1719050008068,7.4233,134.71,134.67,7.4255]
[1719050008268,6.51,134.7,134.67,7.4255]
[1719050009289,6.51,134.71,134.68,7.4249]
[1719050009970,7.4225,134.73,134.68,7.4249]
[1719050010286,7.4225,134.73,134.69,7.4243]
[1719050010490,21.5991,134.74,134.7,7.4238]
[1719050010701,6.51,134.73,134.7,7.4238]
[1719050011079,6.51,134.73,134.69,7.4242]
[1719050011283,29.0209,134.74,134.69,7.4242]
[1719050011586,6.51,134.73,134.69,7.4242]
[1719050011795,29.0209,134.74,134.69,7.4242]
[1719050011980,6.51,134.73,134.69,7.4242]
[1719050013388,29.0209,134.74,134.69,7.4242]
[1719050013578,6.51,134.73,134.69,7.4242]
[1719050013780,29.0209,134.74,134.69,7.4242]
[1719050013994,35.5309,134.74,134.69,7.4242]
[1719050014212,29.0209,134.74,134.69,7.4242]
[1719050014499,35.5309,134.74,134.69,7.4242]
[1719050014968,29.1669,134.74,134.7,7.4236]
[1719050015174,6.51,134.74,134.7,7.4236]
[1719050016282,8.2889006,134.75,134.7,7.4236]
[1719050016487,14.7989006,134.75,134.7,7.4236]
[1719050016667,14.7989006,134.75,134.71,7.4231]
[1719050016986,8.2889006,134.75,134.71,7.4231]
[1719050017307,14.7989006,134.75,134.71,7.4231]
[1719050018780,8.2889006,134.75,134.71,7.4231]
[1719050019103,14.7989006,134.75,134.71,7.4231]
[1719050019276,7.3776006,134.75,134.71,7.4231]
[1719050023305,0.8676006,134.75,134.71,7.4231]
[1719050023802,0.8676006,134.75,134.73,7.422]
[1719050024385,0.8676006,134.75,134.74,7.4217]
[1719050025104,0.8676006,134.75,134.73,15.41369837]
[1719050027081,0.8676006,134.75,134.74,9.13494184]
[1719050027480,0.8676006,134.75,134.74,7.4217]
[1719050028001,0.8676006,134.75,134.74,8.90374577]
[1719050028504,0.8676006,134.75,134.74,15.41374577]
[1719050029893,0.8676006,134.75,134.74,13.9317]
[1719050030603,0.8676006,134.75,134.74,7.4217]
[1719050034604,0.8676006,134.75,134.74,14.2717]
[1719050034810,0.8676006,134.75,134.74,7.7617]
[1719050035489,0.8676006,134.75,134.74,14.2717]
[1719050040212,0.8676006,134.75,134.74,30.884]
[1719050040395,7.4158,134.85,134.8,7.4179]
[1719050040601,7.4158,134.85,134.79,6.51]
[1719050040602,13.9258,134.85,134.79,6.51]
[1719050040795,7.4158,134.85,134.8,7.4181]
[1719050041106,6.51,134.84,134.8,7.4181]
[1719050041295,13.9262,134.84,134.79,7.4187]
[1719050041614,13.9262,134.84,134.79,13.9287]
[1719050041806,7.4162,134.84,134.8,7.4183]
[1719050042110,13.9258,134.85,134.8,7.4183]
[1719050042787,6.51,134.85,134.78,7.419]
[1719050042989,6.51,134.84,134.79,7.4188]
[1719050043197,13.9264,134.84,134.79,7.4188]
[1719050043399,13.9264,134.84,134.79,7.4187]
[1719050043898,13.9264,134.84,134.8,7.4183]
[1719050044094,6.51,134.84,134.8,7.4183]
[1719050044301,13.9262,134.84,134.8,7.4183]
[1719050044489,6.51,134.82,134.78,7.4194]
[1719050044902,13.9273,134.82,134.78,7.4194]
[1719050045744,6.51,134.82,134.78,7.4194]
[1719050047321,6.51,134.82,134.79,7.4188]
[1719050048007,6.51,134.81,134.78,7.4193]
[1719050048216,6.51,134.81,134.79,7.4188]
[1719050051199,6.51,134.81,134.78,7.4192]
[1719050052203,6.51,134.81,134.75,18.5527]
[1719050052412,6.51,134.8,134.77,7.4198]
[1719050052715,22.3127,134.84,134.77,7.4198]
[1719050052916,6.51,134.8,134.77,7.4198]
[1719050053296,20.0,134.83,134.76,25.0601]
[1719050053499,6.51,134.82,134.79,7.4187]
[1719050053921,6.51,134.81,134.74,41.6376]
[1719050054116,6.51,134.81,134.75,6.68]
[1719050054316,6.51,134.8,134.76,7.4203]
[1719050054516,6.51,134.79,134.75,7.421]
[1719050054703,7.4184,134.8,134.75,7.421]
[1719050054704,7.4185,134.8,134.75,7.421]
[1719050054904,6.51,134.78,134.75,7.421]
[1719050055324,6.51,134.79,134.75,7.421]
[1719050056420,7.4185,134.8,134.75,7.421]
[1719050056610,7.4185,134.8,134.76,7.4205]
[1719050057016,7.418,134.81,134.76,7.4205]
[1719050057213,6.51,134.79,134.76,7.4205]
[1719050057611,6.51,134.79,134.75,7.4208]
[1719050057938,13.9292,134.79,134.74,7.4214]
[1719050058100,6.51,134.77,134.74,7.4214]
[1719050058599,6.51,134.78,134.74,7.4214]
[1719050058821,13.9295,134.78,134.74,7.4214]
[1719050059002,6.51,134.78,134.74,7.4214]
[1719050059212,6.51,134.78,134.75,7.421]
[1719050059804,6.51,134.78,134.74,7.4214]
[1719050060221,6.51,134.78,134.75,7.4209]
[1719050060904,7.419,134.79,134.7,15.7647]
[1719050060905,6.51,134.77,134.73,7.422]
[1719050063223,21.9696,134.79,134.72,7.4225]
[1719050063412,6.51,134.74,134.71,7.4231]
[1719050064307,6.51,134.74,134.72,7.4226]
[1719050064720,6.51,134.75,134.72,7.4226]
[1719050065818,6.51,134.74,134.72,7.4226]
[1719050066427,6.51,134.74,134.71,7.4231]
[1719050068032,6.51,134.74,134.72,7.4227]
[1719050068935,6.51,134.74,134.71,7.4231]
[1719050069719,6.51,134.74,134.72,7.4227]
[1719050072040,7.4207,134.76,134.72,7.4227]
[1719050072232,6.51,134.74,134.72,7.4227]
[1719050072421,6.51,134.75,134.72,7.4227]
[1719050073437,6.51,134.75,134.69,25.0701]
[1719050073438,6.51,134.75,134.71,7.423]
[1719050074444,6.51,134.74,134.71,7.423]
[1719050075348,6.51,134.75,134.71,7.423]
[1719050076544,29.7525,134.75,134.7,7.4237]
[1719050076736,29.7525,134.75,134.68,7.4246]
[1719050076737,6.51,134.72,134.68,7.4246]
[1719050078132,6.51,134.72,134.69,7.4242]
[1719050079751,6.51,134.72,134.67,15.7647]
[1719050079965,6.51,134.7,134.64,402.7675]
[1719050080122,18.5585,134.71,134.64,22.5675]
[1719050080123,6.51,134.69,134.64,22.5675]
[1719050080327,6.51,134.68,134.64,22.5675]
[1719050080566,13.9351,134.68,134.64,23.642]
[1719050080728,6.51,134.68,134.64,23.642]
[1719050081153,6.51,134.68,134.65,7.4266]
[1719050081533,6.51,134.69,134.66,7.426]
[1719050081735,6.51,134.7,134.66,7.426]
[1719050083303,6.51,134.7,134.64,22.7249]
[1719050083545,6.51,134.7,134.66,7.4256]
[1719050084123,7.424,134.7,134.65,6.51]
[1719050084332,13.934,134.7,134.65,7.4265]
[1719050085133,6.51,134.7,134.66,7.426]
[1719050085855,6.51,134.71,134.67,7.4253]
[1719050086034,13.9329,134.72,134.67,7.4253]
[1719050086243,7.4224,134.73,134.68,7.4249]
[1719050086547,13.9328,134.72,134.67,7.4253]
[1719050087668,13.9328,134.72,134.68,7.4249]
[1719050087854,6.51,134.71,134.68,7.4249]
[1719050088277,6.51,134.7,134.66,7.4256]
[1719050088767,6.51,134.69,134.66,7.4256]
[1719050089365,6.51,134.7,134.66,7.4256]
[1719050089747,6.51,134.69,134.66,7.4256]
[1719050090475,6.51,134.69,134.67,7.4255]
[1719050090651,6.51,134.7,134.67,7.4255]
[1719050092756,6.51,134.71,134.67,7.4255]
[1719050095271,6.51,134.71,134.68,7.4249]
[1719050095855,6.51,134.71,134.67,7.4253]
[1719050097888,6.51,134.7,134.66,7.4259]
[1719050098057,7.4233,134.71,134.67,7.4255]
[1719050098249,6.51,134.71,134.67,7.4255]
[1719050098446,6.51,134.7,134.67,7.4255]
[1719050101982,6.51,134.71,134.65,25.0755]
[1719050102192,6.51,134.72,134.66,6.85]
[1719050102595,6.51,134.72,134.69,7.4242]
[1719050102891,6.51,134.71,134.68,7.4249]
[1719050103265,6.51,134.71,134.67,7.4254]
[1719050103488,6.51,134.7,134.67,7.4254]
[1719050105832,6.51,134.68,134.64,7.4269]
[1719050106000,6.51,134.67,134.64,7.4269]
[1719050108197,6.51,134.67,134.61,31.7112]
[1719050108198,6.51,134.67,134.65,7.4264]
[1719050108407,6.51,134.68,134.65,7.4264]
[1719050109397,6.51,134.68,134.64,7.4269]
[1719050109989,16.388,134.71,134.61,25.2012]
[1719050109990,7.424,134.7,134.65,7.4264]
[1719050110199,6.1057,134.74,134.66,0.17]
[1719050110490,6.1057,134.74,134.7,7.4236]
[1719050110697,6.1057,134.74,134.67,25.0737]
[1719050110698,6.51,134.73,134.69,7.4241]
[1719050111070,6.51,134.72,134.68,7.4248]
[1719050111270,7.4228,134.72,134.67,7.4252]
[1719050111504,6.51,134.71,134.67,7.4252]
[1719050111681,6.51,134.71,134.65,41.6382]
[1719050111892,6.51,134.71,134.68,7.4249]
[1719050112382,6.51,134.71,134.67,7.4253]
[1719050112584,7.4228,134.72,134.67,7.4253]
[1719050112786,6.51,134.71,134.67,7.4253]
[1719050113198,6.51,134.71,134.65,41.6382]
[1719050113199,6.51,134.71,134.68,7.4248]
[1719050113402,13.9333,134.71,134.66,7.4258]
[1719050113907,6.51,134.71,134.67,7.4255]
[1719050114280,6.51,134.7,134.67,7.4255]
[1719050116295,6.51,134.71,134.68,7.4249]
[1719050116489,6.51,134.72,134.68,7.4249]
[1719050116677,26.51,134.72,134.68,7.4249]
[1719050117399,20.0,134.72,134.69,7.4244]
[1719050117615,26.51,134.72,134.66,6.51]
[1719050118107,26.51,134.72,134.68,7.4248]
[1719050118903,33.9328,134.72,134.68,7.4248]
[1719050119199,33.9328,134.72,134.67,7.4253]
[1719050121710,27.4228,134.72,134.67,7.4253]
[1719050122111,33.9328,134.72,134.67,7.4253]
[1719050124019,13.9328,134.72,134.67,7.4253]
[1719050127399,13.9328,134.72,134.68,7.4249]
[1719050129017,13.9328,134.72,134.67,7.4254]
[1719050129510,6.51,134.71,134.67,7.4254]
[1719050130339,6.51,134.72,134.68,7.4248]
[1719050131614,13.9329,134.72,134.67,7.4253]
[1719050132433,7.4229,134.72,134.68,7.4249]
[1719050132602,6.51,134.72,134.68,7.4249]
[1719050134129,6.51,134.72,134.67,6.51]
[1719050134431,16.2873,134.75,134.7,6.51]
[1719050134623,16.2873,134.75,134.71,7.4229]
[1719050135426,16.2873,134.75,134.71,8.90452179]
[1719050136223,6.51,134.76,134.72,7.4225]
[1719050136428,14.0793,134.77,134.72,7.4225]
[1719050136617,20.5893,134.77,134.72,7.4225]
[1719050136821,14.0793,134.77,134.72,7.4225]
[1719050137004,20.5893,134.77,134.72,7.4225]
[1719050137421,15.9675,134.79,134.74,7.4216]
[1719050137422,7.4195,134.78,134.74,7.4216]
[1719050137634,13.9295,134.78,134.74,7.4216]
[1719050137931,6.51,134.78,134.74,7.4216]
[1719050138517,23.3866,134.79,134.74,7.4216]
[1719050138929,6.51,134.78,134.74,7.4216]
[1719050140337,23.3866,134.79,134.74,7.4216]
[1719050140510,6.51,134.78,134.74,7.4216]
[1719050140708,23.3866,134.79,134.74,7.4216]
[1719050140912,6.51,134.78,134.74,7.4216]
[1719050141432,23.3866,134.79,134.74,7.4216]
[1719050141635,6.51,134.78,134.74,7.4216]
[1719050142830,7.4185,134.8,134.75,7.421]
[1719050143033,6.51,134.8,134.76,7.4204]
[1719050143417,13.9284,134.8,134.76,7.4204]
[1719050144135,13.9284,134.8,134.75,7.421]
[1719050144323,6.51,134.79,134.75,7.421]
[1719050147046,14.0771,134.81,134.77,7.42]
[1719050147341,13.1691,134.81,134.77,7.42]
[1719050147533,6.6591,134.81,134.78,7.4194]
[1719050147717,13.1691,134.81,134.75,6.51]
[1719050147920,13.1691,134.81,134.77,7.4199]
[1719050148227,6.51,134.8,134.77,7.4199]
[1719050149012,6.51,134.8,134.76,7.4204]
[1719050149441,14.077,134.81,134.76,7.4204]
[1719050149614,6.51,134.8,134.76,7.4204]
[1719050151127,14.077,134.81,134.76,7.4204]
[1719050151444,6.51,134.8,134.76,7.4204]
[1719050152225,25.0315,134.84,134.77,7.42]
[1719050152436,6.51,134.82,134.78,7.4193]
[1719050152732,13.9273,134.82,134.78,7.4193]
[1719050153117,20.0,134.83,134.75,15.1015]
[1719050153317,13.9286,134.8,134.75,7.4207]
[1719050155146,6.51,134.79,134.75,7.4207]
[1719050155650,6.51,134.78,134.75,7.4207]
[1719050157227,6.51,134.77,134.75,7.4207]
[1719050160343,13.9086,134.8,134.75,7.4207]
[1719050160522,6.51,134.78,134.75,7.4207]
[1719050161848,6.51,134.78,134.74,7.4214]
[1719050162541,6.51,134.78,134.73,7.422]
[1719050162542,6.51,134.77,134.73,7.422]
[1719050164545,6.49,134.8,134.72,18.5569]
[1719050164736,6.51,134.78,134.76,7.4201]
[1719050165425,6.51,134.78,134.75,7.4209]
[1719050169139,6.49,134.8,134.76,7.4203]
[1719050169442,6.51,134.79,134.76,7.4203]
[1719050170231,6.51,134.79,134.73,6.51]
[1719050170635,6.51,134.79,134.75,7.4208]
[1719050172043,13.9289,134.79,134.75,7.4208]
[1719050172346,6.51,134.78,134.74,7.4214]
[1719050174032,13.9296,134.78,134.73,7.422]
[1719050174542,6.51,134.78,134.74,7.4216]
[1719050175949,13.9296,134.78,134.74,7.4216]
[1719050176154,6.51,134.77,134.74,7.4216]
[1719050177333,6.51,134.78,134.74,7.4216]
[1719050182148,13.9299,134.78,134.73,7.4222]
[1719050182351,6.49,134.8,134.76,7.4202]
[1719050182534,6.51,134.78,134.76,7.4202]
[1719050182735,6.51,134.77,134.73,7.422]
[1719050183247,7.4196,134.78,134.73,7.422]
[1719050183450,6.51,134.77,134.74,7.4214]
[1719050183835,6.51,134.77,134.73,7.4221]
[1719050184047,6.51,134.77,134.74,7.4215]
[1719050184932,6.49,134.8,134.74,6.51]
[1719050185149,13.0,134.8,134.77,7.42]
[1719050185337,6.49,134.8,134.77,7.42]
[1719050185540,6.51,134.81,134.78,7.4194]
[1719050185847,20.0,134.8,134.78,7.4194]
[1719050186460,6.51,134.81,134.77,7.4197]
[1719050188448,6.51,134.8,134.77,7.4197]
[1719050188652,6.51,134.8,134.75,7.4206]
[1719050188863,6.51,134.79,134.75,7.4206]
[1719050189061,6.51,134.79,134.76,7.4204]
[1719050189352,6.51,134.8,134.76,7.4204]
[1719050189550,7.418,134.81,134.76,7.4204]
[1719050189551,6.51,134.79,134.76,7.4204]
[1719050190127,6.51,134.8,134.76,7.4204]
[1719050191750,16.5383,134.82,134.77,7.4198]
[1719050192053,6.51,134.8,134.77,7.4198]
[1719050193757,6.51,134.8,134.76,7.4203]
[1719050194342,6.51,134.81,134.78,7.4192]
[1719050197568,6.51,134.81,134.77,7.4198]
[1719050198375,13.9278,134.81,134.77,7.4198]
[1719050198665,6.51,134.81,134.77,7.4198]
[1719050199163,13.9287,134.8,134.75,22.6026]
[1719050199464,6.51,134.8,134.75,15.1817]
[1719050199664,6.51,134.8,134.76,7.4203]
[1719050204655,13.9279,134.81,134.76,7.4203]
[1719050205476,6.51,134.81,134.77,7.4199]
[1719050208459,6.51,134.8,134.77,7.4199]
[1719050208660,6.51,134.8,134.76,7.4203]
[1719050209571,13.9285,134.8,134.75,22.6027]
[1719050212183,6.51,134.8,134.76,7.4205]
[1719050212765,13.9284,134.8,134.75,22.6026]
[1719050216204,6.51,134.79,134.75,7.4209]
[1719050216495,23.2664,134.81,134.76,7.4205]
[1719050216705,6.51,134.78,134.76,7.4205]
[1719050218687,6.51,134.79,134.76,7.4205]
[1719050221912,6.51,134.79,134.75,7.4209]
[1719050223513,6.51,134.79,134.76,7.4205]
[1719050223710,6.51,134.79,134.77,7.42]
[1719050224217,6.51,134.8,134.77,7.42]
[1719050225097,6.51,134.8,134.78,7.4194]
[1719050225608,6.51,134.8,134.77,7.4197]
[1719050227389,6.51,134.8,134.76,7.4203]
[1719050227593,13.9284,134.8,134.75,7.4209]
[1719050228214,6.51,134.8,134.76,7.4205]
[1719050231105,6.51,134.8,134.77,7.4199]
[1719050234191,6.51,134.8,134.76,7.4203]
[1719050236114,6.51,134.8,134.77,7.4199]
[1719050240500,6.51,134.8,134.75,6.51]
[1719050240501,6.51,134.8,134.76,7.4203]
[1719050244505,13.9278,134.81,134.76,7.4203]
[1719050245817,6.51,134.8,134.72,18.5569]
[1719050245999,13.9289,134.79,134.74,7.4213]
[1719050246199,6.51,134.78,134.74,7.4213]
[1719050246614,6.51,134.78,134.75,7.4211]
[1719050248117,6.51,134.78,134.76,7.4205]
[1719050249113,6.51,134.79,134.76,7.4205]
[1719050249503,16.0622,134.8,134.77,7.42]
[1719050249701,22.5722,134.8,134.77,7.42]
[1719050250618,6.51,134.81,134.77,7.42]
[1719050250821,6.51,134.81,134.78,7.4194]
[1719050251001,6.51,134.81,134.77,7.4197]
[1719050256727,7.4173,134.82,134.77,7.4197]
[1719050257034,6.51,134.8,134.77,7.4197]
[1719050257528,6.51,134.81,134.77,7.4197]
[1719050258523,13.9278,134.81,134.77,7.4197]
[1719050259645,21.803,134.83,134.82,7.4172]
[1719050259928,22.1604,134.83,134.81,7.4177]
[1719050260117,7.4175,134.82,134.75,16.1834]
[1719050260320,7.4183,134.8,134.75,23.6042]
[1719050260527,6.51,134.8,134.75,16.1834]
[1719050260727,6.51,134.8,134.76,7.4205]
[1719050261723,7.4181,134.81,134.76,7.4205]
[1719050261927,6.51,134.8,134.76,7.4205]
[1719050265513,6.51,134.8,134.77,7.4198]
[1719050265711,7.4174,134.82,134.77,7.4198]
[1719050266127,6.51,134.8,134.77,7.4198]
[1719050270131,6.51,134.79,134.73,0.34]
[1719050270316,6.51,134.79,134.73,7.4219]
[1719050270317,6.51,134.78,134.73,7.4219]
[1719050270522,7.4194,134.79,134.73,7.422]
[1719050270523,6.51,134.77,134.73,7.422]
[1719050270739,6.51,134.78,134.72,6.51]
[1719050271037,6.51,134.78,134.75,7.4211]
[1719050271330,6.51,134.78,134.74,7.4214]
[1719050271634,7.4202,134.77,134.72,7.4227]
[1719050271817,6.51,134.77,134.71,21.797]
[1719050272021,6.51,134.77,134.71,28.307]
[1719050272335,32.2076,134.82,134.71,28.307]
[1719050272639,6.51,134.77,134.71,28.307]
[1719050272840,6.51,134.77,134.74,7.4216]
[1719050273140,6.51,134.76,134.74,7.4216]
[1719050273319,6.51,134.76,134.73,7.422]
[1719050273730,6.51,134.76,134.74,7.4215]
[1719050275951,6.51,134.76,134.73,7.422]
[1719050283030,40.1198,134.79,134.68,33.7223]
[1719050283359,40.1198,134.79,134.7,7.4236]
[1719050283360,6.51,134.73,134.7,7.4236]
[1719050286654,21.5724,134.74,134.7,7.4236]
[1719050286655,6.51,134.72,134.7,7.4236]
[1719050287856,6.51,134.73,134.7,7.4236]
[1719050288858,6.51,134.73,134.71,7.4233]
[1719050289757,6.51,134.73,134.7,7.4236]
[1719050290155,6.51,134.73,134.71,7.4232]
[1719050290360,6.51,134.73,134.7,7.4237]
[1719050291957,21.5724,134.74,134.71,7.4233]
[1719050292148,6.51,134.73,134.71,7.4233]
[1719050292548,28.0824,134.74,134.71,7.4233]
[1719050293561,21.5724,134.74,134.71,7.4233]
[1719050293756,28.0824,134.74,134.71,7.4233]
[1719050293962,28.0824,134.74,134.7,7.4237]
[1719050294162,6.51,134.73,134.7,7.4237]
[1719050295567,6.51,134.73,134.69,7.4242]
[1719050295766,6.51,134.72,134.69,7.4242]
[1719050295957,6.51,134.73,134.69,7.4242]
[1719050296645,6.51,134.73,134.67,6.51]
[1719050296646,6.51,134.73,134.7,7.4237]
[1719050297163,6.51,134.73,134.71,7.4233]
[1719050297362,6.51,134.73,134.7,7.4235]
[1719050297566,28.0824,134.74,134.68,6.51]
[1719050298141,6.51,134.73,134.68,6.51]
[1719050298867,6.51,134.73,134.7,7.4237]
[1719050299866,6.51,134.73,134.71,7.4233]
[1719050300568,6.51,134.73,134.7,7.4237]
[1719050303879,6.51,134.72,134.69,7.4241]
[1719050304063,6.51,134.71,134.69,7.4241]
[1719050306971,28.9943,134.74,134.69,7.4241]
[1719050307180,6.51,134.72,134.67,18.5628]
[1719050307364,6.51,134.72,134.71,7.4233]
[1719050307568,6.51,134.73,134.71,7.4233]
[1719050308572,21.5724,134.74,134.71,7.4233]
[1719050308573,6.51,134.72,134.71,7.4233]
[1719050308778,6.51,134.72,134.7,7.4237]
[1719050310773,59.62606156,134.78,134.67,25.0728]
[1719050310774,22.0049,134.77,134.73,7.4219]
[1719050310984,22.0049,134.77,134.72,7.4225]
[1719050310985,6.51,134.75,134.72,7.4225]
[1719050311281,6.51,134.75,134.71,7.4232]
[1719050311659,6.51,134.74,134.69,25.0707]
[1719050312361,6.51,134.74,134.69,18.5607]
[1719050312561,6.51,134.73,134.7,7.4236]
[1719050313876,6.51,134.73,134.71,7.4232]
[1719050314073,6.51,134.74,134.71,7.4232]
[1719050314364,6.51,134.73,134.7,7.4238]
[1719050314575,6.51,134.73,134.67,22.7977]
[1719050315082,6.51,134.73,134.67,16.2877]
[1719050315381,6.51,134.73,134.67,22.7977]
[1719050315570,6.51,134.73,134.69,7.4241]
[1719050316082,6.01,134.73,134.69,7.4241]
[1719050316260,7.4217,134.74,134.69,7.4241]
[1719050316462,6.51,134.73,134.69,7.4241]
[1719050316675,6.51,134.72,134.69,7.4241]
[1719050317373,6.51,134.73,134.69,7.4241]
[1719050320591,6.51,134.72,134.69,7.4241]
[1719050321869,7.4214,134.75,134.69,7.4241]
[1719050322069,6.51,134.72,134.69,7.4241]
[1719050323170,6.51,134.73,134.7,7.4238]
[1719050324400,7.4208,134.76,134.7,7.4238]
[1719050324571,6.51,134.74,134.69,6.51]
[1719050324771,6.51,134.75,134.72,7.4225]
[1719050325189,29.4252,134.77,134.72,7.4225]
[1719050325393,6.51,134.75,134.72,7.4225]
[1719050325567,6.51,134.75,134.71,7.4231]
[1719050329791,6.51,134.74,134.71,7.4231]
[1719050331793,6.51,134.74,134.72,7.4227]
[1719050332171,6.51,134.75,134.72,7.4227]
[1719050333396,20.0,134.76,134.72,7.4227]
[1719050333591,6.51,134.75,134.72,7.4227]
[1719050336494,6.51,134.74,134.71,7.4231]
[1719050336697,6.51,134.74,134.68,6.51]
[1719050337078,6.51,134.74,134.71,7.4232]
[1719050339218,6.51,134.74,134.72,7.4227]
[1719050341105,6.51,134.74,134.71,7.4231]
[1719050341812,6.51,134.74,134.7,7.4236]
[1719050341973,6.51,134.74,134.71,7.4233]
[1719050342406,6.51,134.74,134.72,7.4227]
[1719050342976,6.51,134.74,134.71,7.4231]
[1719050346616,6.51,134.73,134.7,7.4238]
[1719050347599,6.51,134.73,134.71,7.4231]
[1719050347915,6.51,134.73,134.7,7.4237]
[1719050348097,6.51,134.73,134.71,7.4232]
[1719050349412,6.51,134.74,134.71,7.4232]
[1719050352129,6.51,134.74,134.7,7.4236]
[1719050354197,6.51,134.73,134.7,7.4236]
[1719050356592,7.4211,134.75,134.7,7.4236]
[1719050356795,6.51,134.73,134.7,7.4236]
[1719050357291,6.51,134.74,134.71,7.4231]
[1719050357621,6.51,134.75,134.71,7.4231]
[1719050358709,22.16728367,134.8,134.69,18.5601]
[1719050358886,26.51,134.79,134.74,7.4215]
[1719050359292,33.9289,134.79,134.74,7.4215]
[1719050362004,6.51,134.77,134.73,7.422]
[1719050362915,6.51,134.77,134.74,7.4216]
[1719050365109,6.51,134.77,134.73,7.422]
[1719050366614,6.51,134.77,134.72,7.4225]
[1719050366615,6.51,134.76,134.72,7.4225]
[1719050366916,6.51,134.75,134.72,7.4225]
[1719050368213,6.51,134.75,134.71,7.4232]